[Event "*** Titled Tuesday Blitz"]
[Site "Chess.com"]
[Date "2019.08.06"]
[Round "7"]
[White "Karina_Ivanova"]
[Black "Caisachess"]
[Result "0-1"]
[WhiteElo "2165"]
[BlackElo "2320"]
[TimeControl "180+2"]
[EndTime "14:40:26 PDT"]
[Termination "Caisachess won by checkmate"]

1. Nf3 {[%clk 0:03:00.9]} 1... Nf6 {[%clk 0:03:00.4]} 2. g3 {[%clk 0:03:00.3]}
2... e6 {[%clk 0:03:00.2]} 3. Bg2 {[%clk 0:03:00.3]} 3... d5 {[%clk 0:03:01.8]}
4. c4 {[%clk 0:02:59.2]} 4... Be7 {[%clk 0:03:02.4]} 5. d4 {[%clk 0:02:59.1]}
5... O-O {[%clk 0:03:03.8]} 6. O-O {[%clk 0:02:57.3]} 6... dxc4 {[%clk
0:03:04.7]} 7. Qa4 {[%clk 0:02:57.1]} 7... a6 {[%clk 0:03:01.1]} 8. Qxc4 {[%clk
0:02:55.3]} 8... b5 {[%clk 0:03:02.1]} 9. Qd3 {[%clk 0:02:56]} 9... Bb7 {[%clk
0:03:02.9]} 10. Nc3 {[%clk 0:02:52.5]} 10... c5 {[%clk 0:02:59.1]} 11. Rd1
{[%clk 0:02:46.4]} 11... c4 {[%clk 0:02:57.9]} 12. Qd2 {[%clk 0:02:40.9]} 12...
Ne4 {[%clk 0:02:56.6]} 13. Nxe4 {[%clk 0:02:40.1]} 13... Bxe4 {[%clk 0:02:57.6]}
14. Ne1 {[%clk 0:02:37]} 14... Bxg2 {[%clk 0:02:54.8]} 15. Nxg2 {[%clk
0:02:37.5]} 15... Nd7 {[%clk 0:02:53.8]} 16. e4 {[%clk 0:02:36.9]} 16... Nf6
{[%clk 0:02:49.1]} 17. Qe2 {[%clk 0:02:37.1]} 17... Rc8 {[%clk 0:02:40.2]} 18.
Bf4 {[%clk 0:02:32.5]} 18... b4 {[%clk 0:02:38.4]} 19. Rac1 {[%clk 0:02:32.3]}
19... Qa5 {[%clk 0:02:37]} 20. Rxc4 {[%clk 0:02:25.8]} 20... Qxa2 {[%clk
0:02:35.9]} 21. Rxc8 {[%clk 0:02:12.8]} 21... Rxc8 {[%clk 0:02:35.2]} 22. f3
{[%clk 0:02:03.1]} 22... a5 {[%clk 0:02:34.1]} 23. Rc1 {[%clk 0:01:58.1]} 23...
Rxc1+ {[%clk 0:02:33.4]} 24. Bxc1 {[%clk 0:01:57.5]} 24... Qb1 {[%clk
0:02:29.9]} 25. Qd1 {[%clk 0:01:44.6]} 25... a4 {[%clk 0:02:27.9]} 26. Ne3
{[%clk 0:01:39.4]} 26... a3 {[%clk 0:02:28.7]} 27. bxa3 {[%clk 0:01:39.5]} 27...
bxa3 {[%clk 0:02:29]} 28. Bd2 {[%clk 0:01:37.2]} 28... a2 {[%clk 0:02:26.1]} 29.
Bc3 {[%clk 0:01:38]} 29... Bb4 {[%clk 0:02:23.3]} 30. Ba1 {[%clk 0:01:31.1]}
30... Nd7 {[%clk 0:02:08.5]} 31. Kf2 {[%clk 0:01:25.1]} 31... Nb6 {[%clk
0:02:09.1]} 32. Ke2 {[%clk 0:01:19.6]} 32... h6 {[%clk 0:02:06.2]} 33. Nc2
{[%clk 0:01:14.5]} 33... Na4 {[%clk 0:01:50.4]} 34. Nxb4 {[%clk 0:01:05.2]}
34... Qxb4 {[%clk 0:01:50.8]} 35. Qc1 {[%clk 0:00:58.8]} 35... Qb1 {[%clk
0:01:48.3]} 36. Kd2 {[%clk 0:00:59.3]} 36... Qb3 {[%clk 0:01:41.3]} 37. Qd1
{[%clk 0:00:50]} 37... Qc4 {[%clk 0:01:36.6]} 38. Qc1 {[%clk 0:00:46.1]} 38...
Qb4+ {[%clk 0:01:33.9]} 39. Kc2 {[%clk 0:00:41.4]} 39... Nb6 {[%clk 0:01:29.3]}
40. Bc3 {[%clk 0:00:38.8]} 40... Qc4 {[%clk 0:01:26.8]} 41. Kd2 {[%clk
0:00:29.4]} 41... h5 {[%clk 0:01:15.3]} 42. Ba1 {[%clk 0:00:23.8]} 42... Qb3
{[%clk 0:01:03.1]} 43. Qc3 {[%clk 0:00:21]} 43... Qb1 {[%clk 0:01:03.8]} 44. Qc1
{[%clk 0:00:19.4]} 44... g5 {[%clk 0:00:44.8]} 45. Kd1 {[%clk 0:00:13.4]} 45...
g4 {[%clk 0:00:43.9]} 46. fxg4 {[%clk 0:00:13.8]} 46... hxg4 {[%clk 0:00:44.7]}
47. Kd2 {[%clk 0:00:14.7]} 47... Qxe4 {[%clk 0:00:44.8]} 48. Qd1 {[%clk
0:00:13.2]} 48... Nc4+ {[%clk 0:00:42.9]} 49. Kc3 {[%clk 0:00:13.8]} 49... Ne3
{[%clk 0:00:24.2]} 50. Qe1 {[%clk 0:00:10.1]} 50... Nd5+ {[%clk 0:00:24.9]} 51.
Kd2 {[%clk 0:00:11]} 51... Qxe1+ {[%clk 0:00:21.5]} 52. Kxe1 {[%clk 0:00:11.7]}
52... Kg7 {[%clk 0:00:23.4]} 53. Kd2 {[%clk 0:00:12]} 53... Kg6 {[%clk
0:00:25.3]} 54. Kc2 {[%clk 0:00:12.5]} 54... Kf5 {[%clk 0:00:27.2]} 55. Kb3
{[%clk 0:00:12.8]} 55... Ke4 {[%clk 0:00:28.4]} 56. Kxa2 {[%clk 0:00:12.5]}
56... Kf3 {[%clk 0:00:29.8]} 57. Kb3 {[%clk 0:00:13.3]} 57... Kg2 {[%clk
0:00:31]} 58. Kc4 {[%clk 0:00:13]} 58... Kxh2 {[%clk 0:00:32.5]} 59. Kc5 {[%clk
0:00:13.9]} 59... Kxg3 {[%clk 0:00:33.9]} 60. Kd6 {[%clk 0:00:14.8]} 60... Kf3
{[%clk 0:00:35.2]} 61. Bb2 {[%clk 0:00:14.7]} 61... g3 {[%clk 0:00:36.6]} 62.
Kd7 {[%clk 0:00:15.2]} 62... g2 {[%clk 0:00:37.9]} 63. Ke8 {[%clk 0:00:16.5]}
63... g1=Q {[%clk 0:00:37.5]} 64. Kxf7 {[%clk 0:00:17.4]} 64... Qb1 {[%clk
0:00:36.8]} 65. Kxe6 {[%clk 0:00:17.9]} 65... Qxb2 {[%clk 0:00:36.7]} 66. Kxd5
{[%clk 0:00:18.8]} 66... Ke3 {[%clk 0:00:37.7]} 67. Kc6 {[%clk 0:00:18.3]} 67...
Qxd4 {[%clk 0:00:39.2]} 68. Kb5 {[%clk 0:00:17.9]} 68... Ke4 {[%clk 0:00:40.1]}
69. Ka6 {[%clk 0:00:17.4]} 69... Kd5 {[%clk 0:00:41.4]} 70. Kb5 {[%clk
0:00:17.6]} 70... Qc4+ {[%clk 0:00:41.2]} 71. Ka5 {[%clk 0:00:17.9]} 71... Qb3
{[%clk 0:00:40.1]} 72. Ka6 {[%clk 0:00:17.9]} 72... Qb4 {[%clk 0:00:41.5]} 73.
Ka7 {[%clk 0:00:16.4]} 73... Kc6 {[%clk 0:00:41.7]} 74. Ka8 {[%clk 0:00:17.1]}
74... Qb7# {[%clk 0:00:42.6]} 0-1

[Event "*** Titled Tuesday Blitz"]
[Site "Chess.com"]
[Date "2019.08.06"]
[Round "7"]
[White "KacperPolOK"]
[Black "RoelandPruijssers"]
[Result "0-1"]
[WhiteElo "2418"]
[BlackElo "2486"]
[TimeControl "180+2"]
[EndTime "14:40:45 PDT"]
[Termination "RoelandPruijssers won by resignation"]

1. e4 {[%clk 0:03:01.9]} 1... Nf6 {[%clk 0:03:01.9]} 2. e5 {[%clk 0:03:01.4]}
2... Nd5 {[%clk 0:03:02.2]} 3. d4 {[%clk 0:03:02.5]} 3... d6 {[%clk 0:03:03]} 4.
Bc4 {[%clk 0:02:56.6]} 4... Nb6 {[%clk 0:03:02.1]} 5. Bb3 {[%clk 0:02:57.9]}
5... dxe5 {[%clk 0:02:47.3]} 6. Qh5 {[%clk 0:02:56]} 6... e6 {[%clk 0:02:47.8]}
7. dxe5 {[%clk 0:02:56.7]} 7... Nc6 {[%clk 0:02:43.3]} 8. Nf3 {[%clk 0:02:57.4]}
8... Nd4 {[%clk 0:02:16.3]} 9. Nxd4 {[%clk 0:02:55.2]} 9... Qxd4 {[%clk
0:02:16.7]} 10. O-O {[%clk 0:02:55.3]} 10... Bd7 {[%clk 0:02:15.2]} 11. c3
{[%clk 0:02:46.3]} 11... Qd3 {[%clk 0:02:10.6]} 12. Be3 {[%clk 0:02:28.6]} 12...
Qg6 {[%clk 0:01:54.8]} 13. Qf3 {[%clk 0:02:29.4]} 13... Bc6 {[%clk 0:01:51.8]}
14. Qg3 {[%clk 0:02:30.9]} 14... O-O-O {[%clk 0:01:47]} 15. Nd2 {[%clk
0:02:26.6]} 15... Nd5 {[%clk 0:01:38]} 16. Bxd5 {[%clk 0:01:54.9]} 16... Rxd5
{[%clk 0:01:39.9]} 17. Rad1 {[%clk 0:01:48.5]} 17... Rxe5 {[%clk 0:01:29.1]} 18.
Bf4 {[%clk 0:01:49.7]} 18... Qxg3 {[%clk 0:01:26.6]} 19. hxg3 {[%clk 0:01:40.8]}
19... Rd5 {[%clk 0:01:20.7]} 20. Nf3 {[%clk 0:01:39.6]} 20... Rxd1 {[%clk
0:01:13.8]} 21. Rxd1 {[%clk 0:01:40.3]} 21... f6 {[%clk 0:01:14.9]} 22. Nd4
{[%clk 0:01:37.5]} 22... Bd7 {[%clk 0:01:16]} 23. Be3 {[%clk 0:01:35.4]} 23...
e5 {[%clk 0:01:11.1]} 24. Nb3 {[%clk 0:01:34.3]} 24... Be6 {[%clk 0:01:10]} 25.
Nc5 {[%clk 0:01:31.8]} 25... Bf7 {[%clk 0:00:50.2]} 26. a4 {[%clk 0:01:28]}
26... b6 {[%clk 0:00:47.1]} 27. Ne4 {[%clk 0:01:16]} 27... Be7 {[%clk
0:00:42.7]} 28. a5 {[%clk 0:01:17]} 28... Be6 {[%clk 0:00:41]} 29. axb6 {[%clk
0:01:13.2]} 29... axb6 {[%clk 0:00:42.9]} 30. f4 {[%clk 0:00:56.3]} 30... exf4
{[%clk 0:00:37.4]} 31. Bxf4 {[%clk 0:00:54.7]} 31... Re8 {[%clk 0:00:28.5]} 32.
Nf2 {[%clk 0:00:41.8]} 32... Bc5 {[%clk 0:00:21.9]} 33. b4 {[%clk 0:00:41.9]}
33... Bf8 {[%clk 0:00:21.6]} 34. Re1 {[%clk 0:00:38.4]} 34... Kd7 {[%clk
0:00:22.4]} 35. Ra1 {[%clk 0:00:39.3]} 35... Bd5 {[%clk 0:00:22.1]} 36. Nd3
{[%clk 0:00:35.5]} 36... Bd6 {[%clk 0:00:18.9]} 37. Rd1 {[%clk 0:00:36.7]} 37...
Bb3 {[%clk 0:00:17.5]} 38. Rd2 {[%clk 0:00:36.8]} 38... Bxf4 {[%clk 0:00:15.1]}
39. gxf4 {[%clk 0:00:36.5]} 39... Kc6 {[%clk 0:00:15.8]} 40. Kf2 {[%clk
0:00:36.1]} 40... Bd5 {[%clk 0:00:15.1]} 41. g4 {[%clk 0:00:31.5]} 41... Be4
{[%clk 0:00:15.7]} 42. Nc1 {[%clk 0:00:30.9]} 42... Re7 {[%clk 0:00:13.9]} 43.
Ne2 {[%clk 0:00:31.3]} 43... Kb5 {[%clk 0:00:12.5]} 44. Rd4 {[%clk 0:00:27.5]}
44... Bb7 {[%clk 0:00:12.3]} 45. Ng3 {[%clk 0:00:26.7]} 45... c5 {[%clk
0:00:13.5]} 46. Rd6 {[%clk 0:00:24.3]} 46... cxb4 {[%clk 0:00:13.6]} 47. cxb4
{[%clk 0:00:26.2]} 47... Rc7 {[%clk 0:00:15.1]} 48. Nf5 {[%clk 0:00:25.7]} 48...
Rc2+ {[%clk 0:00:15.5]} 49. Ke3 {[%clk 0:00:26.4]} 49... Rc3+ {[%clk 0:00:16.3]}
50. Kd2 {[%clk 0:00:24.6]} 50... Rc7 {[%clk 0:00:08.4]} 51. Re6 {[%clk
0:00:23.7]} 51... Bd5 {[%clk 0:00:05.8]} 52. Rd6 {[%clk 0:00:17.7]} 52... Be4
{[%clk 0:00:06.6]} 53. Nd4+ {[%clk 0:00:17.1]} 53... Kxb4 {[%clk 0:00:04.7]} 54.
Rxb6+ {[%clk 0:00:17.1]} 54... Kc5 {[%clk 0:00:05.6]} 55. Ke3 {[%clk 0:00:10.4]}
55... Kxb6 {[%clk 0:00:05.6]} 56. Kxe4 {[%clk 0:00:12]} 56... Re7+ {[%clk
0:00:05.4]} 57. Kf5 {[%clk 0:00:11.7]} 57... Kc5 {[%clk 0:00:07]} 58. Nf3 {[%clk
0:00:10.5]} 58... Kd6 {[%clk 0:00:07.7]} 59. g5 {[%clk 0:00:08.5]} 59... Rf7
{[%clk 0:00:09.2]} 60. g6 {[%clk 0:00:08.6]} 60... hxg6+ {[%clk 0:00:09.6]} 61.
Kxg6 {[%clk 0:00:10.4]} 61... Ra7 {[%clk 0:00:09.9]} 62. Nh4 {[%clk 0:00:11.7]}
62... Kd5 {[%clk 0:00:09.9]} 63. Kf5 {[%clk 0:00:12.1]} 63... Rb7 {[%clk
0:00:08.7]} 64. Ng6 {[%clk 0:00:13.3]} 64... Kd4 {[%clk 0:00:09.2]} 65. Nf8
{[%clk 0:00:13]} 65... Ke3 {[%clk 0:00:07.6]} 66. Ne6 {[%clk 0:00:13.4]} 66...
Re7 {[%clk 0:00:07.6]} 67. Nf8 {[%clk 0:00:11.6]} 67... Kf3 {[%clk 0:00:08.3]}
68. Ng6 {[%clk 0:00:11.6]} 68... Ra7 {[%clk 0:00:08.9]} 69. Nf8 {[%clk 0:00:08]}
69... Ra5+ {[%clk 0:00:07.9]} 70. Kg6 {[%clk 0:00:09.5]} 70... Kxf4 {[%clk
0:00:08.7]} 71. Kxg7 {[%clk 0:00:11]} 71... f5 {[%clk 0:00:09.9]} 72. Kg6 {[%clk
0:00:11.3]} 72... Ra6+ {[%clk 0:00:10.8]} 73. Kh5 {[%clk 0:00:12.1]} 73... Rd6
{[%clk 0:00:08.5]} 74. Nh7 {[%clk 0:00:13]} 74... Kg3 {[%clk 0:00:04.7]} 75. Ng5
{[%clk 0:00:12.3]} 75... Ra6 {[%clk 0:00:05.2]} 76. Nf7 {[%clk 0:00:05.6]} 76...
f4 {[%clk 0:00:05.3]} 77. Ne5 {[%clk 0:00:07]} 77... Ra5 {[%clk 0:00:06.4]} 0-1

[Event "*** Titled Tuesday Blitz"]
[Site "Chess.com"]
[Date "2019.08.06"]
[Round "7"]
[White "WPWPWP-2015"]
[Black "RegZryt"]
[Result "0-1"]
[WhiteElo "2420"]
[BlackElo "2605"]
[TimeControl "180+2"]
[EndTime "14:40:59 PDT"]
[Termination "RegZryt won by checkmate"]

1. e4 {[%clk 0:03:01.9]} 1... c5 {[%clk 0:03:00.1]} 2. Nf3 {[%clk 0:03:02.3]}
2... e6 {[%clk 0:03:01.1]} 3. b3 {[%clk 0:03:02.6]} 3... d5 {[%clk 0:02:58.3]}
4. exd5 {[%clk 0:03:02.6]} 4... Qxd5 {[%clk 0:02:59]} 5. Nc3 {[%clk 0:03:02]}
5... Qd8 {[%clk 0:02:59.9]} 6. Bc4 {[%clk 0:02:57.1]} 6... Nf6 {[%clk
0:03:00.9]} 7. O-O {[%clk 0:02:57.3]} 7... Be7 {[%clk 0:03:02.2]} 8. a4 {[%clk
0:02:57.1]} 8... O-O {[%clk 0:03:02.7]} 9. Bb2 {[%clk 0:02:56.5]} 9... Nc6
{[%clk 0:03:03.8]} 10. Re1 {[%clk 0:02:54.3]} 10... b6 {[%clk 0:02:51.4]} 11.
Qe2 {[%clk 0:02:46.6]} 11... Bb7 {[%clk 0:02:50.7]} 12. Rad1 {[%clk 0:02:36]}
12... a6 {[%clk 0:02:25.9]} 13. h3 {[%clk 0:02:18.4]} 13... Nd4 {[%clk
0:02:26.6]} 14. Nxd4 {[%clk 0:02:15.1]} 14... cxd4 {[%clk 0:02:28.5]} 15. Nb1
{[%clk 0:02:14.1]} 15... b5 {[%clk 0:02:19.3]} 16. axb5 {[%clk 0:02:09.3]} 16...
axb5 {[%clk 0:02:21.2]} 17. Bxb5 {[%clk 0:01:55]} 17... Ra2 {[%clk 0:02:21.7]}
18. Bc1 {[%clk 0:01:46.3]} 18... Qd5 {[%clk 0:02:21.9]} 19. f3 {[%clk
0:01:42.4]} 19... Nh5 {[%clk 0:02:18.4]} 20. Bc4 {[%clk 0:01:17.2]} 20... Qd8
{[%clk 0:01:57.1]} 21. d3 {[%clk 0:01:03]} 21... Bh4 {[%clk 0:01:57.6]} 22. Qe5
{[%clk 0:00:33.5]} 22... Ra5 {[%clk 0:01:34.8]} 23. Qe2 {[%clk 0:00:21.1]} 23...
Bg3 {[%clk 0:01:14.5]} 24. b4 {[%clk 0:00:18.4]} 24... Rf5 {[%clk 0:01:09.1]}
25. c3 {[%clk 0:00:14.8]} 25... dxc3 {[%clk 0:01:08]} 26. Be3 {[%clk 0:00:13.9]}
26... Bxe1 {[%clk 0:01:06.3]} 27. Rxe1 {[%clk 0:00:13.9]} 27... Nf4 {[%clk
0:01:02.9]} 28. Bxf4 {[%clk 0:00:09.6]} 28... Rxf4 {[%clk 0:01:04.8]} 29. Qe3
{[%clk 0:00:10.8]} 29... Qg5 {[%clk 0:00:43.6]} 30. Kh2 {[%clk 0:00:10.8]} 30...
c2 {[%clk 0:00:43.7]} 31. Nd2 {[%clk 0:00:10.6]} 31... Qf6 {[%clk 0:00:32.1]}
32. Rc1 {[%clk 0:00:10.1]} 32... h5 {[%clk 0:00:20.8]} 33. Rxc2 {[%clk
0:00:10.1]} 33... h4 {[%clk 0:00:22.3]} 34. Kg1 {[%clk 0:00:07.2]} 34... Rd8
{[%clk 0:00:22.4]} 35. Nf1 {[%clk 0:00:06.4]} 35... Qg5 {[%clk 0:00:20.9]} 36.
Kh2 {[%clk 0:00:06.9]} 36... e5 {[%clk 0:00:19.8]} 37. Re2 {[%clk 0:00:07.5]}
37... Rf5 {[%clk 0:00:18.2]} 38. Qxg5 {[%clk 0:00:07.4]} 38... Rxg5 {[%clk
0:00:20.1]} 39. Ne3 {[%clk 0:00:07.5]} 39... Kf8 {[%clk 0:00:20.5]} 40. Ng4
{[%clk 0:00:08]} 40... Re8 {[%clk 0:00:21]} 41. Ne3 {[%clk 0:00:08.2]} 41... Rg6
{[%clk 0:00:21.5]} 42. b5 {[%clk 0:00:09.2]} 42... Rb6 {[%clk 0:00:22.5]} 43.
Ra2 {[%clk 0:00:10]} 43... Bc8 {[%clk 0:00:21.8]} 44. Ra7 {[%clk 0:00:10.3]}
44... Rb7 {[%clk 0:00:22.7]} 45. Ra6 {[%clk 0:00:09.7]} 45... Bd7 {[%clk
0:00:23.7]} 46. Ra5 {[%clk 0:00:07.7]} 46... Reb8 {[%clk 0:00:24.6]} 47. Ng4
{[%clk 0:00:03.8]} 47... f6 {[%clk 0:00:25.7]} 48. Ne3 {[%clk 0:00:03.7]} 48...
Bxb5 {[%clk 0:00:26.9]} 49. Bd5 {[%clk 0:00:05]} 49... Rc7 {[%clk 0:00:25]} 50.
Be4 {[%clk 0:00:05.9]} 50... Bd7 {[%clk 0:00:24.3]} 51. Nd5 {[%clk 0:00:06.6]}
51... Rc5 {[%clk 0:00:23.3]} 52. Ra7 {[%clk 0:00:07.3]} 52... Rd8 {[%clk
0:00:24.2]} 53. Nb6 {[%clk 0:00:06.7]} 53... Be6 {[%clk 0:00:25.1]} 54. g3
{[%clk 0:00:06.1]} 54... Rc2+ {[%clk 0:00:25]} 55. Kg1 {[%clk 0:00:06.6]} 55...
hxg3 {[%clk 0:00:26.6]} 56. Ra3 {[%clk 0:00:05]} 56... Bxh3 {[%clk 0:00:26.5]}
57. Ra1 {[%clk 0:00:04.2]} 57... Rb8 {[%clk 0:00:22.2]} 58. Nc4 {[%clk
0:00:04.2]} 58... Be6 {[%clk 0:00:19.6]} 59. Ne3 {[%clk 0:00:04.8]} 59... Re2
{[%clk 0:00:20.2]} 60. Nf1 {[%clk 0:00:05.6]} 60... g2 {[%clk 0:00:19.5]} 61.
Ng3 {[%clk 0:00:05.8]} 61... Reb2 {[%clk 0:00:20.5]} 62. Kh2 {[%clk 0:00:05]}
62... g1=Q+ {[%clk 0:00:18.2]} 63. Kxg1 {[%clk 0:00:04.4]} 63... Rb1+ {[%clk
0:00:19.8]} 64. Rxb1 {[%clk 0:00:05.8]} 64... Rxb1+ {[%clk 0:00:21.7]} 65. Kf2
{[%clk 0:00:07.2]} 65... Rb2+ {[%clk 0:00:23.2]} 66. Ke3 {[%clk 0:00:08]} 66...
Kf7 {[%clk 0:00:24.1]} 67. Ne2 {[%clk 0:00:04.7]} 67... g6 {[%clk 0:00:24.7]}
68. f4 {[%clk 0:00:05.3]} 68... f5 {[%clk 0:00:25.1]} 69. Bf3 {[%clk 0:00:06.1]}
69... exf4+ {[%clk 0:00:17.2]} 70. Nxf4 {[%clk 0:00:08]} 70... g5 {[%clk
0:00:17.2]} 71. Ne2 {[%clk 0:00:08]} 71... Kf6 {[%clk 0:00:17.1]} 72. d4 {[%clk
0:00:06.3]} 72... Bc4 {[%clk 0:00:17]} 73. Nc1 {[%clk 0:00:05.1]} 73... Rc2
{[%clk 0:00:17.1]} 74. Ne2 {[%clk 0:00:05.6]} 74... Bxe2 {[%clk 0:00:18.1]} 75.
Bxe2 {[%clk 0:00:06.5]} 75... Rxe2+ {[%clk 0:00:19.1]} 76. Kxe2 {[%clk
0:00:07.4]} 76... Ke6 {[%clk 0:00:21]} 77. Ke3 {[%clk 0:00:05.9]} 77... Kd5
{[%clk 0:00:22.2]} 78. Kd3 {[%clk 0:00:06.9]} 78... f4 {[%clk 0:00:23.7]} 79.
Ke2 {[%clk 0:00:06.7]} 79... Kxd4 {[%clk 0:00:24.4]} 80. Kf3 {[%clk 0:00:08.3]}
80... Ke5 {[%clk 0:00:25.8]} 81. Kg4 {[%clk 0:00:08.6]} 81... Ke4 {[%clk
0:00:27.2]} 82. Kh3 {[%clk 0:00:09.9]} 82... f3 {[%clk 0:00:28.2]} 83. Kg3
{[%clk 0:00:11]} 83... Ke3 {[%clk 0:00:29.7]} 84. Kh2 {[%clk 0:00:11.2]} 84...
f2 {[%clk 0:00:30.6]} 85. Kg2 {[%clk 0:00:12]} 85... Ke2 {[%clk 0:00:32.1]} 86.
Kh2 {[%clk 0:00:11.9]} 86... f1=Q {[%clk 0:00:33.1]} 87. Kg3 {[%clk 0:00:12.5]}
87... Qf4+ {[%clk 0:00:33.1]} 88. Kh3 {[%clk 0:00:13.2]} 88... Qf3+ {[%clk
0:00:33.9]} 89. Kh2 {[%clk 0:00:14.2]} 89... Qg4 {[%clk 0:00:35.5]} 90. Kh1
{[%clk 0:00:15.2]} 90... Kf2 {[%clk 0:00:37.4]} 91. Kh2 {[%clk 0:00:15.8]} 91...
Qh4# {[%clk 0:00:39.3]} 0-1

[Event "*** Titled Tuesday Blitz"]
[Site "Chess.com"]
[Date "2019.08.06"]
[Round "8"]
[White "Iyael"]
[Black "novocane"]
[Result "0-1"]
[WhiteElo "2147"]
[BlackElo "2174"]
[TimeControl "180+2"]
[EndTime "14:47:46 PDT"]
[Termination "novocane won by resignation"]

1. e4 {[%clk 0:03:01.9]} 1... c5 {[%clk 0:03:00.7]} 2. c3 {[%clk 0:03:01.9]}
2... Nf6 {[%clk 0:03:01.6]} 3. e5 {[%clk 0:03:02.7]} 3... Nd5 {[%clk 0:03:03.1]}
4. d4 {[%clk 0:03:04.1]} 4... cxd4 {[%clk 0:03:04.4]} 5. Nf3 {[%clk 0:03:05.6]}
5... Nc6 {[%clk 0:03:04.8]} 6. Bc4 {[%clk 0:03:06.4]} 6... Nb6 {[%clk
0:03:05.3]} 7. Bb3 {[%clk 0:03:07.5]} 7... d5 {[%clk 0:03:02.8]} 8. exd6 {[%clk
0:03:08.2]} 8... Qxd6 {[%clk 0:03:03.6]} 9. O-O {[%clk 0:03:08.5]} 9... Be6
{[%clk 0:03:03.6]} 10. Bxe6 {[%clk 0:03:09.3]} 10... Qxe6 {[%clk 0:03:04.7]} 11.
Nxd4 {[%clk 0:03:10.4]} 11... Nxd4 {[%clk 0:02:55]} 12. Qxd4 {[%clk 0:03:11]}
12... Rd8 {[%clk 0:02:47.3]} 13. Qh4 {[%clk 0:03:11.6]} 13... Qc4 {[%clk
0:02:33.7]} 14. Be3 {[%clk 0:03:10.8]} 14... Qxh4 {[%clk 0:02:33.9]} 0-1

[Event "*** Titled Tuesday Blitz"]
[Site "Chess.com"]
[Date "2019.08.06"]
[Round "8"]
[White "Me_ch_an"]
[Black "tgpgoat"]
[Result "1-0"]
[WhiteElo "2321"]
[BlackElo "1956"]
[TimeControl "180+2"]
[EndTime "14:47:47 PDT"]
[Termination "Me_ch_an won by resignation"]

1. e4 {[%clk 0:03:00.9]} 1... c5 {[%clk 0:03:00.8]} 2. Nc3 {[%clk 0:03:01]} 2...
Nc6 {[%clk 0:03:01.5]} 3. g3 {[%clk 0:03:02.1]} 3... g6 {[%clk 0:03:02.3]} 4.
Bg2 {[%clk 0:03:03.6]} 4... Bg7 {[%clk 0:03:03.6]} 5. d3 {[%clk 0:03:05.5]} 5...
d6 {[%clk 0:02:52.2]} 6. Be3 {[%clk 0:03:06.6]} 6... Nf6 {[%clk 0:02:51.2]} 7.
h3 {[%clk 0:03:07.8]} 7... O-O {[%clk 0:02:52.2]} 8. Qd2 {[%clk 0:03:09.1]} 8...
a6 {[%clk 0:02:53.1]} 9. Nge2 {[%clk 0:03:10.1]} 9... b5 {[%clk 0:02:53.7]} 10.
e5 {[%clk 0:03:01.9]} 10... d5 {[%clk 0:02:38.3]} 11. exf6 {[%clk 0:03:00.1]}
1-0

[Event "*** Titled Tuesday Blitz"]
[Site "Chess.com"]
[Date "2019.08.06"]
[Round "8"]
[White "Nakachuk"]
[Black "olksuna"]
[Result "0-1"]
[WhiteElo "2653"]
[BlackElo "2551"]
[TimeControl "180+2"]
[EndTime "14:50:00 PDT"]
[Termination "olksuna won by resignation"]

1. d4 {[%clk 0:03:01.9]} 1... d5 {[%clk 0:03:00.8]} 2. Bf4 {[%clk 0:03:01.8]}
2... Nf6 {[%clk 0:02:59.9]} 3. e3 {[%clk 0:03:02]} 3... e6 {[%clk 0:03:01.4]} 4.
Nd2 {[%clk 0:03:00.8]} 4... Bd6 {[%clk 0:03:02.7]} 5. Bg3 {[%clk 0:03:01.9]}
5... c5 {[%clk 0:03:04.3]} 6. c3 {[%clk 0:03:02.4]} 6... Qc7 {[%clk 0:03:05.7]}
7. Ngf3 {[%clk 0:03:02.2]} 7... Nbd7 {[%clk 0:03:06.8]} 8. Bb5 {[%clk
0:02:36.6]} 8... O-O {[%clk 0:03:07.2]} 9. Bxd7 {[%clk 0:02:29.9]} 9... Nxd7
{[%clk 0:03:05.3]} 10. dxc5 {[%clk 0:02:24.9]} 10... Nxc5 {[%clk 0:03:04.3]} 11.
Bxd6 {[%clk 0:02:25.9]} 11... Qxd6 {[%clk 0:03:02]} 12. O-O {[%clk 0:02:27.3]}
12... b6 {[%clk 0:03:02.9]} 13. Re1 {[%clk 0:02:26.2]} 13... Nd3 {[%clk
0:03:03.3]} 14. Re2 {[%clk 0:02:25.9]} 14... Nxb2 {[%clk 0:03:04.3]} 15. Ne4
{[%clk 0:02:02.8]} 15... Qa3 {[%clk 0:02:52.5]} 16. Qd4 {[%clk 0:01:54.3]} 16...
dxe4 {[%clk 0:02:47]} 17. Ng5 {[%clk 0:01:55.4]} 17... Bb7 {[%clk 0:02:44.1]}
18. Qe5 {[%clk 0:01:39.5]} 18... Nd3 {[%clk 0:02:38.6]} 19. Qg3 {[%clk
0:01:39.4]} 19... Qxc3 {[%clk 0:02:36.5]} 20. Rf1 {[%clk 0:01:40.4]} 20... h6
{[%clk 0:02:33.8]} 21. Nh3 {[%clk 0:01:38.9]} 21... Rac8 {[%clk 0:02:33.4]} 22.
f4 {[%clk 0:01:39.6]} 22... exf3 {[%clk 0:02:33.9]} 23. gxf3 {[%clk 0:01:41.5]}
23... Qe5 {[%clk 0:02:28.4]} 24. f4 {[%clk 0:01:41.6]} 24... Qe4 {[%clk
0:02:26.6]} 0-1

[Event "*** Titled Tuesday Blitz"]
[Site "Chess.com"]
[Date "2019.08.06"]
[Round "8"]
[White "djano"]
[Black "SanchezKelvin"]
[Result "0-1"]
[WhiteElo "2344"]
[BlackElo "2455"]
[TimeControl "180+2"]
[EndTime "14:50:24 PDT"]
[Termination "SanchezKelvin won by resignation"]

1. e4 {[%clk 0:03:00]} 1... c5 {[%clk 0:03:00.2]} 2. Nc3 {[%clk 0:03:00.5]} 2...
Nc6 {[%clk 0:03:01.1]} 3. Bb5 {[%clk 0:03:01.1]} 3... g6 {[%clk 0:03:00.1]} 4.
Bxc6 {[%clk 0:02:59.1]} 4... bxc6 {[%clk 0:03:02]} 5. Nge2 {[%clk 0:02:59.5]}
5... Bg7 {[%clk 0:03:02.6]} 6. O-O {[%clk 0:03:00.7]} 6... e5 {[%clk 0:03:02.6]}
7. f4 {[%clk 0:03:01]} 7... exf4 {[%clk 0:02:58.8]} 8. Nxf4 {[%clk 0:03:01.7]}
8... Ne7 {[%clk 0:02:59.6]} 9. d3 {[%clk 0:03:00.6]} 9... O-O {[%clk 0:03:00.2]}
10. Be3 {[%clk 0:02:59.5]} 10... d6 {[%clk 0:03:01.1]} 11. Qd2 {[%clk
0:02:57.7]} 11... Rb8 {[%clk 0:03:00.5]} 12. Rab1 {[%clk 0:02:53.2]} 12... f5
{[%clk 0:03:00.2]} 13. Kh1 {[%clk 0:02:48.4]} 13... g5 {[%clk 0:02:52.6]} 14.
Nh5 {[%clk 0:02:48.1]} 14... f4 {[%clk 0:02:53.1]} 15. Bg1 {[%clk 0:02:34.1]}
15... Bh8 {[%clk 0:02:53.7]} 16. g3 {[%clk 0:02:23]} 16... Bg4 {[%clk
0:02:52.5]} 17. Nxf4 {[%clk 0:02:15.7]} 17... gxf4 {[%clk 0:02:51.9]} 18. gxf4
{[%clk 0:02:17]} 18... Bg7 {[%clk 0:02:47.4]} 19. f5 {[%clk 0:02:17.4]} 19...
Kh8 {[%clk 0:02:25.8]} 20. Qg5 {[%clk 0:02:15.4]} 20... Bxc3 {[%clk 0:02:16.6]}
21. bxc3 {[%clk 0:02:07.3]} 21... Rxb1 {[%clk 0:02:16.7]} 22. f6 {[%clk
0:02:06.7]} 22... Ng6 {[%clk 0:02:07.5]} 23. Qh6 {[%clk 0:02:04.6]} 23... Rxf6
{[%clk 0:01:53]} 0-1